[Event "Titled Tuesday Blitz September 27 Early 2022"]
[White "Blokhin, Sofia"]
[Black "Vachylia, Andrii"]
[WhiteFideId "4508190"]
[BlackFideId "14137224"]
[WhiteElo "1771"]
[BlackElo "2318"]
[Result "1/2-1/2"]
[Round "01"]
[TimeControl "180+1"]
[Date "2022.09.27"]
[WhiteClock "0:00:07"]
[BlackClock "0:00:19"]

1. d4 {[%clk 0:02:58]}  Nf6 {[%clk 0:02:58]} 2. c4 {[%clk 0:02:58]}  e6 {[%clk 0:02:58]} 3. Nc3 {[%clk 0:02:58]}  Bb4 {[%clk 0:02:58]} 4. f3 {[%clk 0:02:58]}  d5 {[%clk 0:02:57]} 5. Qb3 {[%clk 0:02:48]}  Nc6 {[%clk 0:02:54]} 6. cxd5 {[%clk 0:02:44]}  Nxd4 {[%clk 0:02:50]} 7. Qd1 {[%clk 0:02:31]}  c5 {[%clk 0:02:14]} 8. dxc6 {[%clk 0:02:18]}  Nxc6 {[%clk 0:02:02]} 9. Qxd8+ {[%clk 0:02:17]}  Nxd8 {[%clk 0:02:03]} 10. Bd2 {[%clk 0:02:16]}  O-O {[%clk 0:02:01]} 11. O-O-O {[%clk 0:02:13]}  e5 {[%clk 0:01:59]} 12. e4 {[%clk 0:02:11]}  Be6 {[%clk 0:01:58]} 13. Kb1 {[%clk 0:02:10]}  Nc6 {[%clk 0:01:56]} 14. Bd3 {[%clk 0:01:53]}  Rfd8 {[%clk 0:01:20]} 15. Bc2 {[%clk 0:01:52]}  Nd4 {[%clk 0:01:15]} 16. Ba4 {[%clk 0:01:47]}  Rac8 {[%clk 0:01:08]} 17. Nh3 {[%clk 0:01:30]}  Nxf3 {[%clk 0:01:01]} 18. gxf3 {[%clk 0:01:12]}  Bxh3 {[%clk 0:01:00]} 19. Bg5 {[%clk 0:00:59]}  Bxc3 {[%clk 0:00:54]} 20. bxc3 {[%clk 0:00:54]}  h6 {[%clk 0:00:54]} 21. Bxf6 {[%clk 0:00:50]}  gxf6 {[%clk 0:00:54]} 22. Rhg1+ {[%clk 0:00:48]}  Kf8 {[%clk 0:00:53]} 23. Rxd8+ {[%clk 0:00:34]}  Rxd8 {[%clk 0:00:54]} 24. Kc2 {[%clk 0:00:34]}  Be6 {[%clk 0:00:53]} 25. Bb3 {[%clk 0:00:30]}  Ke7 {[%clk 0:00:40]} 26. Rg7 {[%clk 0:00:26]}  h5 {[%clk 0:00:35]} 27. Rh7 {[%clk 0:00:23]}  Rg8 {[%clk 0:00:35]} 28. Rxh5 {[%clk 0:00:18]}  Rg2+ {[%clk 0:00:34]} 29. Kd3 {[%clk 0:00:17]}  Rf2 {[%clk 0:00:32]} 30. Bxe6 {[%clk 0:00:14]}  Kxe6 {[%clk 0:00:29]} 31. Ke3 {[%clk 0:00:11]}  Rxa2 {[%clk 0:00:29]} 32. Rh8 {[%clk 0:00:10]}  b6 {[%clk 0:00:22]} 33. h4 {[%clk 0:00:10]}  Rh2 {[%clk 0:00:22]} 34. h5 {[%clk 0:00:10]}  f5 {[%clk 0:00:22]} 35. exf5+ {[%clk 0:00:07]}  Kxf5 {[%clk 0:00:23]} 36. Rh7 {[%clk 0:00:05]}  Kf6 {[%clk 0:00:19]} 37. Ke4 {[%clk 0:00:06]}  Rh4+ {[%clk 0:00:18]} 38. Ke3 {[%clk 0:00:05]}  a5 {[%clk 0:00:18]} 39. Rh8 {[%clk 0:00:04]}  Rc4 {[%clk 0:00:13]} 40. Rh6+ {[%clk 0:00:04]}  Kg7 {[%clk 0:00:12]} 41. Rxb6 {[%clk 0:00:03]}  Rxc3+ {[%clk 0:00:13]} 42. Ke4 {[%clk 0:00:03]}  a4 {[%clk 0:00:13]} 43. Kxe5 {[%clk 0:00:04]}  Rxf3 {[%clk 0:00:13]} 44. Ra6 {[%clk 0:00:03]}  a3 {[%clk 0:00:13]} 45. Ke4 {[%clk 0:00:03]}  Rh3 {[%clk 0:00:13]} 46. h6+ {[%clk 0:00:03]}  Kh7 {[%clk 0:00:13]} 47. Kf4 {[%clk 0:00:03]}  Rb3 {[%clk 0:00:12]} 48. Kf5 {[%clk 0:00:02]}  Rf3+ {[%clk 0:00:10]} 49. Kg5 {[%clk 0:00:03]}  Rb3 {[%clk 0:00:08]} 50. Kg4 {[%clk 0:00:03]}  Rc3 {[%clk 0:00:07]} 51. Kg5 {[%clk 0:00:04]}  Kg8 {[%clk 0:00:07]} 52. Kg4 {[%clk 0:00:04]}  Rc4+ {[%clk 0:00:07]} 53. Kg5 {[%clk 0:00:04]}  Rc3 {[%clk 0:00:08]} 54. Kg4 {[%clk 0:00:04]}  Rb3 {[%clk 0:00:06]} 55. Kg5 {[%clk 0:00:05]}  Kh7 {[%clk 0:00:06]} 56. Kg4 {[%clk 0:00:05]}  Rb4+ {[%clk 0:00:07]} 57. Kg5 {[%clk 0:00:05]}  Rb5+ {[%clk 0:00:07]} 58. Kg4 {[%clk 0:00:05]}  f5+ {[%clk 0:00:07]} 59. Kg5 {[%clk 0:00:05]}  Rc5 {[%clk 0:00:07]} 60. Rxa3 {[%clk 0:00:05]}  f4+ {[%clk 0:00:07]} 61. Kxf4 {[%clk 0:00:04]}  Kxh6 {[%clk 0:00:07]} 62. Rh3+ {[%clk 0:00:04]}  Kg7 {[%clk 0:00:08]} 63. Rg3+ {[%clk 0:00:05]}  Kf6 {[%clk 0:00:08]} 64. Kf3 {[%clk 0:00:05]}  Rc4 {[%clk 0:00:09]} 65. Kg2 {[%clk 0:00:02]}  Kf5 {[%clk 0:00:09]} 66. Rf3+ {[%clk 0:00:02]}  Ke4 {[%clk 0:00:09]} 67. Rg3 {[%clk 0:00:02]}  Rc2+ {[%clk 0:00:10]} 68. Kh3 {[%clk 0:00:02]}  Kf4 {[%clk 0:00:11]} 69. Rg4+ {[%clk 0:00:02]}  Kf5 {[%clk 0:00:11]} 70. Rg3 {[%clk 0:00:02]}  Rc1 {[%clk 0:00:12]} 71. Rg2 {[%clk 0:00:02]}  Kf4 {[%clk 0:00:13]} 72. Kh2 {[%clk 0:00:02]}  Rc3 {[%clk 0:00:12]} 73. Rf2+ {[%clk 0:00:02]}  Kg4 {[%clk 0:00:12]} 74. Rg2+ {[%clk 0:00:03]}  Kh4 {[%clk 0:00:13]} 75. Rf2 {[%clk 0:00:03]}  Rh3+ {[%clk 0:00:13]} 76. Kg2 {[%clk 0:00:03]}  Rg3+ {[%clk 0:00:14]} 77. Kh2 {[%clk 0:00:03]}  Ra3 {[%clk 0:00:15]} 78. Kg2 {[%clk 0:00:03]}  Kg4 {[%clk 0:00:15]} 79. Kh2 {[%clk 0:00:03]}  Ra8 {[%clk 0:00:16]} 80. Kg2 {[%clk 0:00:04]}  Rh8 {[%clk 0:00:16]} 81. Kg1 {[%clk 0:00:04]}  Kg3 {[%clk 0:00:16]} 82. Rb2 {[%clk 0:00:04]}  Rc8 {[%clk 0:00:16]} 83. Rb3+ {[%clk 0:00:05]}  Kg4 {[%clk 0:00:16]} 84. Kg2 {[%clk 0:00:06]}  Rc2+ {[%clk 0:00:17]} 85. Kg1 {[%clk 0:00:06]}  Kf4 {[%clk 0:00:18]} 86. Kf1 {[%clk 0:00:05]}  Rc1+ {[%clk 0:00:17]} 87. Kf2 {[%clk 0:00:06]}  Rc2+ {[%clk 0:00:18]} 88. Kf1 {[%clk 0:00:06]}  Rc8 {[%clk 0:00:19]} 89. Kf2 {[%clk 0:00:06]}  Ke4 {[%clk 0:00:19]} 90. Kf1 {[%clk 0:00:06]}  Kd4 {[%clk 0:00:19]} 91. Rh3 {[%clk 0:00:06]}  Rf8+ {[%clk 0:00:19]} 92. Ke1 {[%clk 0:00:07]}  Ke4 {[%clk 0:00:19]} 93. Kd1 {[%clk 0:00:07]}  Rf1+ {[%clk 0:00:18]} 94. Kd2 {[%clk 0:00:06]}  Rf2+ {[%clk 0:00:19]} 95. Kd1 {[%clk 0:00:06]}  Kd4 {[%clk 0:00:18]} 96. Ke1 {[%clk 0:00:06]}  Ra2 {[%clk 0:00:18]} 97. Kf1 {[%clk 0:00:07]}  Ke4 {[%clk 0:00:19]} 98. Kg1 {[%clk 0:00:07]}  Kf4 {[%clk 0:00:19]} 99. Rb3 {[%clk 0:00:07]}  Rc2 {[%clk 0:00:19]} 100. Kf1 {[%clk 0:00:07]} 1/2-1/2


[Site "https://www.chess.com"]

[Event "Titled Tuesday Blitz September 27 Early 2022"]
[White "Bortnyk, Mykola"]
[Black "Fiorito, Francisco"]
[WhiteFideId "14120836"]
[BlackFideId "180165"]
[WhiteElo "2582"]
[BlackElo "1787"]
[Result "1-0"]
[Round "01"]
[TimeControl "180+1"]
[Date "2022.09.27"]
[WhiteClock "0:01:13"]
[BlackClock "0:00:23"]

1. e4 {[%clk 0:03:00]}  c5 {[%clk 0:02:59]} 2. c3 {[%clk 0:03:01]}  Nf6 {[%clk 0:02:59]} 3. e5 {[%clk 0:03:01]}  Nd5 {[%clk 0:02:59]} 4. g3 {[%clk 0:03:01]}  Nc6 {[%clk 0:02:58]} 5. Bg2 {[%clk 0:03:01]}  Nc7 {[%clk 0:02:58]} 6. Nf3 {[%clk 0:02:58]}  g6 {[%clk 0:02:57]} 7. d4 {[%clk 0:02:57]}  cxd4 {[%clk 0:02:57]} 8. cxd4 {[%clk 0:02:58]}  Bg7 {[%clk 0:02:42]} 9. O-O {[%clk 0:02:47]}  O-O {[%clk 0:02:41]} 10. Re1 {[%clk 0:02:45]}  d6 {[%clk 0:02:39]} 11. exd6 {[%clk 0:02:45]}  Qxd6 {[%clk 0:02:38]} 12. Bf4 {[%clk 0:02:45]}  Qd8 {[%clk 0:02:35]} 13. Nc3 {[%clk 0:02:41]}  Bf5 {[%clk 0:02:04]} 14. Qb3 {[%clk 0:02:17]}  Na5 {[%clk 0:01:34]} 15. Qb4 {[%clk 0:02:10]}  Na6 {[%clk 0:01:28]} 16. Qxe7 {[%clk 0:02:08]}  Qxe7 {[%clk 0:01:23]} 17. Rxe7 {[%clk 0:02:09]}  Bf6 {[%clk 0:01:22]} 18. Re2 {[%clk 0:02:01]}  Nb4 {[%clk 0:01:18]} 19. Bd6 {[%clk 0:01:58]}  Nc2 {[%clk 0:01:13]} 20. Rc1 {[%clk 0:01:58]}  Nxd4 {[%clk 0:01:03]} 21. Nxd4 {[%clk 0:01:57]}  Bxd4 {[%clk 0:01:04]} 22. Bxf8 {[%clk 0:01:57]}  Rxf8 {[%clk 0:01:05]} 23. Nd5 {[%clk 0:01:54]}  Be6 {[%clk 0:01:01]} 24. b4 {[%clk 0:01:44]}  Nc6 {[%clk 0:00:59]} 25. Nf4 {[%clk 0:01:43]}  Bg4 {[%clk 0:00:57]} 26. Rd2 {[%clk 0:01:39]}  Bb6 {[%clk 0:00:56]} 27. Bxc6 {[%clk 0:01:38]}  bxc6 {[%clk 0:00:57]} 28. Kg2 {[%clk 0:01:38]}  Bf5 {[%clk 0:00:55]} 29. Re2 {[%clk 0:01:36]}  g5 {[%clk 0:00:52]} 30. Re5 {[%clk 0:01:31]}  gxf4 {[%clk 0:00:39]} 31. Rxf5 {[%clk 0:01:32]}  fxg3 {[%clk 0:00:40]} 32. hxg3 {[%clk 0:01:30]}  Rd8 {[%clk 0:00:39]} 33. Rxc6 {[%clk 0:01:29]}  Rd2 {[%clk 0:00:40]} 34. a4 {[%clk 0:01:29]}  Rb2 {[%clk 0:00:39]} 35. a5 {[%clk 0:01:29]}  Bd4 {[%clk 0:00:39]} 36. b5 {[%clk 0:01:27]}  Ra2 {[%clk 0:00:40]} 37. Rd6 {[%clk 0:01:20]}  Bc3 {[%clk 0:00:33]} 38. b6 {[%clk 0:01:19]}  Bxa5 {[%clk 0:00:25]} 39. b7 {[%clk 0:01:18]}  Bc7 {[%clk 0:00:25]} 40. Rd8+ {[%clk 0:01:18]}  Kg7 {[%clk 0:00:23]} 41. Rc8 {[%clk 0:01:13]} 1-0


[Site "https://www.chess.com"]

[Event "Titled Tuesday Blitz September 27 Early 2022"]
[White "Bowden, Karl"]
[Black "Ozen, Bahadir"]
[WhiteFideId "400548"]
[BlackFideId "6337058"]
[WhiteElo "2454"]
[BlackElo "2503"]
[Result "1-0"]
[Round "01"]
[TimeControl "180+1"]
[Date "2022.09.27"]
[WhiteClock "0:00:14"]
[BlackClock "0:00:09"]

1. e4 {[%clk 0:02:59]}  c6 {[%clk 0:02:59]} 2. c4 {[%clk 0:02:59]}  d5 {[%clk 0:03:00]} 3. cxd5 {[%clk 0:03:00]}  cxd5 {[%clk 0:03:01]} 4. exd5 {[%clk 0:03:00]}  Nf6 {[%clk 0:03:01]} 5. Bb5+ {[%clk 0:03:00]}  Nbd7 {[%clk 0:02:56]} 6. Nc3 {[%clk 0:03:00]}  g6 {[%clk 0:02:53]} 7. d4 {[%clk 0:02:58]}  a6 {[%clk 0:02:46]} 8. Be2 {[%clk 0:02:56]}  Nb6 {[%clk 0:02:35]} 9. Bf3 {[%clk 0:02:53]}  Nbxd5 {[%clk 0:02:33]} 10. Qb3 {[%clk 0:02:38]}  Nxc3 {[%clk 0:02:28]} 11. bxc3 {[%clk 0:02:33]}  Bg7 {[%clk 0:02:28]} 12. Bxb7 {[%clk 0:02:23]}  Bxb7 {[%clk 0:02:16]} 13. Qxb7 {[%clk 0:02:23]}  O-O {[%clk 0:02:13]} 14. Ne2 {[%clk 0:02:22]}  Qd5 {[%clk 0:01:37]} 15. Qxd5 {[%clk 0:02:08]}  Nxd5 {[%clk 0:01:38]} 16. O-O {[%clk 0:02:02]}  Rac8 {[%clk 0:01:38]} 17. Ba3 {[%clk 0:01:50]}  Nxc3 {[%clk 0:01:36]} 18. Nxc3 {[%clk 0:01:49]}  Rxc3 {[%clk 0:01:37]} 19. Bxe7 {[%clk 0:01:49]}  Re8 {[%clk 0:01:28]} 20. Bc5 {[%clk 0:01:44]}  Rc2 {[%clk 0:01:02]} 21. g3 {[%clk 0:00:56]}  f5 {[%clk 0:01:01]} 22. a3 {[%clk 0:00:51]}  Ree2 {[%clk 0:00:55]} 23. Rab1 {[%clk 0:00:43]}  Rb2 {[%clk 0:00:48]} 24. Rxb2 {[%clk 0:00:41]}  Rxb2 {[%clk 0:00:49]} 25. Re1 {[%clk 0:00:36]}  Rd2 {[%clk 0:00:37]} 26. Re8+ {[%clk 0:00:35]}  Kf7 {[%clk 0:00:38]} 27. Re7+ {[%clk 0:00:34]}  Kg8 {[%clk 0:00:38]} 28. Ra7 {[%clk 0:00:32]}  g5 {[%clk 0:00:36]} 29. Rxa6 {[%clk 0:00:31]}  h5 {[%clk 0:00:30]} 30. h3 {[%clk 0:00:24]}  Bxd4 {[%clk 0:00:19]} 31. Bxd4 {[%clk 0:00:22]}  Rxd4 {[%clk 0:00:20]} 32. Rg6+ {[%clk 0:00:21]}  Kf7 {[%clk 0:00:19]} 33. Rxg5 {[%clk 0:00:22]}  Kf6 {[%clk 0:00:19]} 34. Rxh5 {[%clk 0:00:22]}  Ra4 {[%clk 0:00:19]} 35. Rh8 {[%clk 0:00:20]}  Rxa3 {[%clk 0:00:19]} 36. Rf8+ {[%clk 0:00:21]}  Kg6 {[%clk 0:00:19]} 37. Kg2 {[%clk 0:00:21]}  Rb3 {[%clk 0:00:20]} 38. Rc8 {[%clk 0:00:17]}  Ra3 {[%clk 0:00:19]} 39. Rc6+ {[%clk 0:00:17]}  Kg5 {[%clk 0:00:18]} 40. Rc5 {[%clk 0:00:17]}  Kg6 {[%clk 0:00:18]} 41. g4 {[%clk 0:00:17]}  fxg4 {[%clk 0:00:16]} 42. hxg4 {[%clk 0:00:18]}  Rb3 {[%clk 0:00:17]} 43. f3 {[%clk 0:00:18]}  Rb1 {[%clk 0:00:16]} 44. Kg3 {[%clk 0:00:19]}  Rb4 {[%clk 0:00:16]} 45. Rc6+ {[%clk 0:00:18]}  Kg7 {[%clk 0:00:14]} 46. g5 {[%clk 0:00:18]}  Rb1 {[%clk 0:00:14]} 47. f4 {[%clk 0:00:18]}  Rg1+ {[%clk 0:00:14]} 48. Kf3 {[%clk 0:00:18]}  Rf1+ {[%clk 0:00:14]} 49. Kg4 {[%clk 0:00:18]}  Ra1 {[%clk 0:00:13]} 50. Rc7+ {[%clk 0:00:17]}  Kf8 {[%clk 0:00:12]} 51. g6 {[%clk 0:00:17]}  Ra6 {[%clk 0:00:11]} 52. Kg5 {[%clk 0:00:17]}  Ke8 {[%clk 0:00:08]} 53. f5 {[%clk 0:00:17]}  Kd8 {[%clk 0:00:09]} 54. Rh7 {[%clk 0:00:14]} 1-0


[Site "https://www.chess.com"]

[Event "Titled Tuesday Blitz September 27 Early 2022"]
[White "Chernomordik, Pavel"]
[Black "Dardha, Daniel"]
[WhiteFideId "2804530"]
[BlackFideId "240990"]
[WhiteElo "2217"]
[BlackElo "2528"]
[Result "0-1"]
[Round "01"]
[TimeControl "180+1"]
[Date "2022.09.27"]
[WhiteClock "0:00:02"]
[BlackClock "0:01:49"]

1. e4 {[%clk 0:03:00]}  e5 {[%clk 0:02:58]} 2. Nf3 {[%clk 0:02:59]}  Nc6 {[%clk 0:02:57]} 3. Bb5 {[%clk 0:02:58]}  Nf6 {[%clk 0:02:57]} 4. Qe2 {[%clk 0:02:57]}  Bd6 {[%clk 0:02:56]} 5. h3 {[%clk 0:02:49]}  O-O {[%clk 0:02:54]} 6. g4 {[%clk 0:02:46]}  Re8 {[%clk 0:02:53]} 7. c3 {[%clk 0:02:45]}  Bc5 {[%clk 0:02:48]} 8. d3 {[%clk 0:02:43]}  d5 {[%clk 0:02:39]} 9. Nbd2 {[%clk 0:02:39]}  a6 {[%clk 0:02:38]} 10. Ba4 {[%clk 0:02:36]}  Be6 {[%clk 0:02:33]} 11. Nf1 {[%clk 0:02:27]}  b5 {[%clk 0:02:33]} 12. Bb3 {[%clk 0:02:17]}  Na5 {[%clk 0:02:31]} 13. Ng3 {[%clk 0:01:52]}  Nxb3 {[%clk 0:02:30]} 14. axb3 {[%clk 0:01:51]}  dxe4 {[%clk 0:02:30]} 15. Nxe4 {[%clk 0:01:40]}  Nxe4 {[%clk 0:02:30]} 16. dxe4 {[%clk 0:01:40]}  Bxb3 {[%clk 0:02:30]} 17. Bg5 {[%clk 0:01:20]}  f6 {[%clk 0:02:24]} 18. Be3 {[%clk 0:01:20]}  Bc4 {[%clk 0:02:23]} 19. Qc2 {[%clk 0:01:14]}  Bxe3 {[%clk 0:02:19]} 20. fxe3 {[%clk 0:01:11]}  Qd3 {[%clk 0:02:14]} 21. Qxd3 {[%clk 0:01:05]}  Bxd3 {[%clk 0:02:15]} 22. Nd2 {[%clk 0:01:05]}  Red8 {[%clk 0:02:15]} 23. O-O-O {[%clk 0:00:58]}  c5 {[%clk 0:02:11]} 24. Nb3 {[%clk 0:00:38]}  Bxe4 {[%clk 0:02:07]} 25. Rxd8+ {[%clk 0:00:34]}  Rxd8 {[%clk 0:02:08]} 26. Re1 {[%clk 0:00:34]}  c4 {[%clk 0:02:04]} 27. Nc5 {[%clk 0:00:33]}  Bg2 {[%clk 0:02:05]} 28. h4 {[%clk 0:00:25]}  Rd6 {[%clk 0:02:03]} 29. e4 {[%clk 0:00:23]}  Bf3 {[%clk 0:02:00]} 30. g5 {[%clk 0:00:22]}  fxg5 {[%clk 0:01:59]} 31. hxg5 {[%clk 0:00:22]}  Rg6 {[%clk 0:01:56]} 32. Rf1 {[%clk 0:00:17]}  Bg4 {[%clk 0:01:53]} 33. Rg1 {[%clk 0:00:13]}  Rxg5 {[%clk 0:01:49]} 34. Nxa6 {[%clk 0:00:12]}  h5 {[%clk 0:01:49]} 35. Nc7 {[%clk 0:00:10]}  h4 {[%clk 0:01:49]} 36. Nxb5 {[%clk 0:00:06]}  h3 {[%clk 0:01:50]} 37. Nd6 {[%clk 0:00:06]}  h2 {[%clk 0:01:47]} 38. Rh1 {[%clk 0:00:06]}  Rh5 {[%clk 0:01:48]} 39. Nxc4 {[%clk 0:00:03]}  Bf3 {[%clk 0:01:48]} 40. Rxh2 {[%clk 0:00:03]}  Rxh2 {[%clk 0:01:49]} 41. Nxe5 {[%clk 0:00:03]}  Bxe4 {[%clk 0:01:50]} 42. b4 {[%clk 0:00:02]}  Rc2+ {[%clk 0:01:49]} 0-1


[Site "https://www.chess.com"]

[Event "Titled Tuesday Blitz September 27 Early 2022"]
[White "Corallo, Michael"]
[Black "Dilanyan, Grigor"]
[WhiteFideId "2024152"]
[BlackFideId "13303570"]
[WhiteElo "2150"]
[BlackElo "2264"]
[Result "0-1"]
[Round "01"]
[TimeControl "180+1"]
[Date "2022.09.27"]
[WhiteClock "0:00:17"]
[BlackClock "0:01:59"]

1. e4 {[%clk 0:03:00]}  e5 {[%clk 0:02:55]} 2. Nf3 {[%clk 0:03:00]}  Nc6 {[%clk 0:02:53]} 3. Bb5 {[%clk 0:03:00]}  a6 {[%clk 0:02:52]} 4. Ba4 {[%clk 0:03:00]}  Nf6 {[%clk 0:02:52]} 5. d3 {[%clk 0:02:57]}  b5 {[%clk 0:02:48]} 6. Bb3 {[%clk 0:02:57]}  Be7 {[%clk 0:02:45]} 7. O-O {[%clk 0:02:39]}  O-O {[%clk 0:02:43]} 8. h3 {[%clk 0:02:29]}  d6 {[%clk 0:02:43]} 9. a3 {[%clk 0:02:28]}  Na5 {[%clk 0:02:40]} 10. Ba2 {[%clk 0:02:28]}  c5 {[%clk 0:02:40]} 11. Nc3 {[%clk 0:02:23]}  Be6 {[%clk 0:02:40]} 12. Nd5 {[%clk 0:02:20]}  Bxd5 {[%clk 0:02:38]} 13. exd5 {[%clk 0:02:21]}  Nd7 {[%clk 0:02:30]} 14. b4 {[%clk 0:02:15]}  Nb7 {[%clk 0:02:28]} 15. Re1 {[%clk 0:01:59]}  f5 {[%clk 0:02:27]} 16. Bb2 {[%clk 0:01:50]}  Bf6 {[%clk 0:02:27]} 17. Nd2 {[%clk 0:01:42]}  Re8 {[%clk 0:02:25]} 18. Qf3 {[%clk 0:01:36]}  g6 {[%clk 0:02:23]} 19. Rab1 {[%clk 0:01:33]}  a5 {[%clk 0:02:22]} 20. bxc5 {[%clk 0:01:16]}  Nbxc5 {[%clk 0:02:21]} 21. g4 {[%clk 0:01:14]}  Bg5 {[%clk 0:02:13]} 22. Nf1 {[%clk 0:01:09]}  Rf8 {[%clk 0:02:12]} 23. Bc3 {[%clk 0:00:58]}  b4 {[%clk 0:02:12]} 24. Bd2 {[%clk 0:00:52]}  e4 {[%clk 0:02:06]} 25. dxe4 {[%clk 0:00:41]}  fxe4 {[%clk 0:02:07]} 26. Qg2 {[%clk 0:00:38]}  bxa3 {[%clk 0:02:03]} 27. Ne3 {[%clk 0:00:31]}  Bh4 {[%clk 0:02:01]} 28. Rf1 {[%clk 0:00:30]}  Ne5 {[%clk 0:02:00]} 29. Bc3 {[%clk 0:00:21]}  Nf3+ {[%clk 0:01:58]} 30. Kh1 {[%clk 0:00:22]}  Bf6 {[%clk 0:01:58]} 31. Bxf6 {[%clk 0:00:17]}  Qxf6 {[%clk 0:01:59]} 0-1


[Site "https://www.chess.com"]

[Event "Titled Tuesday Blitz September 27 Early 2022"]
[White "Dahale, Atul"]
[Black "Kalashian, David"]
[WhiteFideId "5037794"]
[BlackFideId "13302418"]
[WhiteElo "2017"]
[BlackElo "2490"]
[Result "0-1"]
[Round "01"]
[TimeControl "180+1"]
[Date "2022.09.27"]
[WhiteClock "0:00:06"]
[BlackClock "0:00:28"]

1. d4 {[%clk 0:02:43]}  Nf6 {[%clk 0:02:51]} 2. c4 {[%clk 0:02:43]}  e6 {[%clk 0:02:51]} 3. Nc3 {[%clk 0:02:38]}  Bb4 {[%clk 0:02:46]} 4. e3 {[%clk 0:02:37]}  c5 {[%clk 0:02:44]} 5. Bd3 {[%clk 0:02:34]}  O-O {[%clk 0:02:43]} 6. Ne2 {[%clk 0:02:14]}  d5 {[%clk 0:02:42]} 7. O-O {[%clk 0:02:12]}  dxc4 {[%clk 0:02:37]} 8. Bxc4 {[%clk 0:02:11]}  Nbd7 {[%clk 0:02:34]} 9. a3 {[%clk 0:02:11]}  cxd4 {[%clk 0:02:34]} 10. axb4 {[%clk 0:02:06]}  dxc3 {[%clk 0:02:33]} 11. bxc3 {[%clk 0:02:07]}  Qc7 {[%clk 0:02:33]} 12. Bd3 {[%clk 0:02:01]}  b6 {[%clk 0:02:30]} 13. Bb2 {[%clk 0:01:58]}  Ne5 {[%clk 0:02:26]} 14. Nd4 {[%clk 0:01:20]}  Bb7 {[%clk 0:02:17]} 15. Rc1 {[%clk 0:01:15]}  Rfd8 {[%clk 0:02:07]} 16. Be2 {[%clk 0:01:12]}  Nc4 {[%clk 0:02:03]} 17. Bxc4 {[%clk 0:00:55]}  Qxc4 {[%clk 0:02:03]} 18. Qc2 {[%clk 0:00:45]}  e5 {[%clk 0:01:54]} 19. Nf3 {[%clk 0:00:29]}  Bxf3 {[%clk 0:01:47]} 20. gxf3 {[%clk 0:00:30]}  e4 {[%clk 0:01:36]} 21. fxe4 {[%clk 0:00:23]}  Nxe4 {[%clk 0:01:33]} 22. f3 {[%clk 0:00:21]}  Nf6 {[%clk 0:01:03]} 23. Qf5 {[%clk 0:00:13]}  Qe2 {[%clk 0:00:54]} 24. Rf2 {[%clk 0:00:11]}  Qxe3 {[%clk 0:00:53]} 25. Rf1 {[%clk 0:00:10]}  Rd5 {[%clk 0:00:50]} 26. Qh3 {[%clk 0:00:09]}  Rg5+ {[%clk 0:00:35]} 27. Kh1 {[%clk 0:00:09]}  Rd8 {[%clk 0:00:32]} 28. c4 {[%clk 0:00:09]}  Nh5 {[%clk 0:00:30]} 29. f4 {[%clk 0:00:06]}  Qxh3 {[%clk 0:00:28]} 0-1


[Site "https://www.chess.com"]

[Event "Titled Tuesday Blitz September 27 Early 2022"]
[White "Deuer, Marius"]
[Black "Riehle, Marco"]
[WhiteFideId "16236432"]
[BlackFideId "12904392"]
[WhiteElo "2059"]
[BlackElo "2462"]
[Result "1-0"]
[Round "01"]
[TimeControl "180+1"]
[Date "2022.09.27"]
[WhiteClock "0:00:37"]
[BlackClock "0:01:09"]

1. e4 {[%clk 0:03:00]}  e5 {[%clk 0:02:58]} 2. Bc4 {[%clk 0:02:57]}  Nf6 {[%clk 0:02:58]} 3. d3 {[%clk 0:02:57]}  Bc5 {[%clk 0:02:55]} 4. Nf3 {[%clk 0:02:53]}  Nc6 {[%clk 0:02:55]} 5. Nc3 {[%clk 0:02:49]}  d6 {[%clk 0:02:54]} 6. Bg5 {[%clk 0:02:49]}  h6 {[%clk 0:02:54]} 7. Bh4 {[%clk 0:02:49]}  Be6 {[%clk 0:02:54]} 8. O-O {[%clk 0:02:41]}  g5 {[%clk 0:02:48]} 9. Bg3 {[%clk 0:02:42]}  Qd7 {[%clk 0:02:47]} 10. Nd5 {[%clk 0:02:40]}  Bxd5 {[%clk 0:02:34]} 11. exd5 {[%clk 0:02:23]}  Nd4 {[%clk 0:02:26]} 12. Nxd4 {[%clk 0:02:20]}  Bxd4 {[%clk 0:02:27]} 13. c3 {[%clk 0:02:20]}  Bb6 {[%clk 0:02:27]} 14. d4 {[%clk 0:02:16]}  e4 {[%clk 0:02:27]} 15. f3 {[%clk 0:02:13]}  O-O-O {[%clk 0:02:23]} 16. a4 {[%clk 0:02:07]}  a6 {[%clk 0:02:22]} 17. a5 {[%clk 0:01:55]}  Ba7 {[%clk 0:02:20]} 18. fxe4 {[%clk 0:01:46]}  Nxe4 {[%clk 0:02:19]} 19. Bd3 {[%clk 0:01:46]}  Rde8 {[%clk 0:02:15]} 20. Qf3 {[%clk 0:01:32]}  Nxg3 {[%clk 0:02:04]} 21. hxg3 {[%clk 0:01:33]}  Kb8 {[%clk 0:02:05]} 22. Qxf7 {[%clk 0:01:32]}  Re7 {[%clk 0:01:59]} 23. Qf5 {[%clk 0:01:30]}  Qe8 {[%clk 0:01:56]} 24. b4 {[%clk 0:01:28]}  Re3 {[%clk 0:01:54]} 25. Rf3 {[%clk 0:01:17]}  Rxf3 {[%clk 0:01:43]} 26. Qxf3 {[%clk 0:01:18]}  Rf8 {[%clk 0:01:43]} 27. Qe2 {[%clk 0:01:17]}  Qd8 {[%clk 0:01:33]} 28. Re1 {[%clk 0:00:54]}  b6 {[%clk 0:01:23]} 29. Bxa6 {[%clk 0:00:52]}  h5 {[%clk 0:01:17]} 30. Qb5 {[%clk 0:00:44]}  c5 {[%clk 0:01:10]} 31. Qc6 {[%clk 0:00:37]}  Qc7 {[%clk 0:01:10]} 32. Re8+ {[%clk 0:00:36]}  Rxe8 {[%clk 0:01:09]} 33. Qxe8+ {[%clk 0:00:37]} 1-0


[Site "https://www.chess.com"]

[Event "Titled Tuesday Blitz September 27 Early 2022"]
[White "Domingo Nunez, Ruben"]
[Black "Koridze, Lile"]
[WhiteFideId "22245570"]
[BlackFideId "13612514"]
[WhiteElo "2406"]
[BlackElo "2050"]
[Result "1-0"]
[Round "01"]
[TimeControl "180+1"]
[Date "2022.09.27"]
[WhiteClock "0:00:52"]
[BlackClock "0:02:25"]

1. c4 {[%clk 0:02:59]}  e5 {[%clk 0:02:59]} 2. Nc3 {[%clk 0:02:57]}  Nf6 {[%clk 0:02:59]} 3. Nf3 {[%clk 0:02:57]}  Nc6 {[%clk 0:02:59]} 4. e4 {[%clk 0:02:57]}  Bb4 {[%clk 0:02:51]} 5. d3 {[%clk 0:02:56]}  Bxc3+ {[%clk 0:02:51]} 6. bxc3 {[%clk 0:02:57]}  O-O {[%clk 0:02:51]} 7. Be2 {[%clk 0:02:56]}  d6 {[%clk 0:02:52]} 8. O-O {[%clk 0:02:57]}  h6 {[%clk 0:02:52]} 9. h3 {[%clk 0:02:57]}  Be6 {[%clk 0:02:52]} 10. Nh2 {[%clk 0:02:53]}  Ne7 {[%clk 0:02:51]} 11. f4 {[%clk 0:02:53]}  exf4 {[%clk 0:02:51]} 12. Bxf4 {[%clk 0:02:54]}  Ng6 {[%clk 0:02:52]} 13. Be3 {[%clk 0:02:55]}  c6 {[%clk 0:02:51]} 14. Qd2 {[%clk 0:02:53]}  d5 {[%clk 0:02:51]} 15. exd5 {[%clk 0:02:42]}  cxd5 {[%clk 0:02:50]} 16. c5 {[%clk 0:02:43]}  Rc8 {[%clk 0:02:40]} 17. Rab1 {[%clk 0:02:42]}  Qc7 {[%clk 0:02:39]} 18. Bd4 {[%clk 0:02:40]}  Nd7 {[%clk 0:02:39]} 19. Ng4 {[%clk 0:02:20]}  Kh7 {[%clk 0:02:38]} 20. Bf3 {[%clk 0:01:34]}  Nxc5 {[%clk 0:02:34]} 21. Bxg7 {[%clk 0:01:32]}  Bxg4 {[%clk 0:02:30]} 22. Qxh6+ {[%clk 0:01:32]}  Kg8 {[%clk 0:02:29]} 23. Bxg4 {[%clk 0:00:52]}  Rfe8 {[%clk 0:02:27]} 24. Bf6 {[%clk 0:00:52]}  Ne6 {[%clk 0:02:25]} 25. Bxe6 {[%clk 0:00:52]} 1-0


[Site "https://www.chess.com"]